[Event "Redbull chessmasters 2019"]
[Site "Istambul"]
[Date "2019.11.24"]
[Round "7.8"]
[White "Yanik, Sural Emine"]
[Black "Duru, Ipek"]
[Result "1/2-1/2"]
[ECO "D03"]
[WhiteElo "1834"]
[BlackElo "1566"]
[Annotator "NA"]
[PlyCount "109"]
[EventDate "2019.11.23"]
[EventType "k.o."]
[EventCountry "TUR"]
[SourceTitle "playchess.com"]
[Source "ChessBase"]
[SourceQuality "1"]
[TimeControl "600+5"]

1. d4 {[%emt 0:00:00]} Nf6 {[%emt 0:00:00]} 2. Nf3 {[%emt 0:00:05]} e6 {[%emt 0:00:05]} 3. Bg5 {[%emt 0:00:05]} Be7 {[%emt 0:00:05]} 4. e3 {[%emt 0:00:05]} d5 {[%emt 0:00:00]} 5. Bd3 {[%emt 0:00:00]} h6 {[%emt 0:00:00]} 6. Bh4 {[%emt 0:00:00]} b6 {[%emt 0:00:00]} 7. c3 {[%emt 0:00:06]} Bb7 {[%emt 0:00:00]} 8. Ne5 {[%emt 0:00:43]} Nbd7 {[%emt 0:00:00]} 9. Bb5 {[%emt 0:00:21]} O-O {[%emt 0:00:00]} 10. Nd2 {[%emt 0:01:22]} Nxe5 {[%emt 0:00:53]} 11. dxe5 {[%emt 0:00:05]} Nd7 {[%emt 0:00:05]} 12. Bg3 {[%emt 0:00:05]} c6 {[%emt 0:00:05]} 13. Bd3 {[%emt 0:00:05]} Nc5 {[%emt 0:00:05]} 14. Bc2 {[%emt 0:00:05]} Ba6 {[%emt 0:00:05]} 15. Nf3 {[%emt 0:00:05]} Ne4 {[%emt 0:00:11]} 16. Bf4 {[%emt 0:00:52]} f6 {[%emt 0:00:38]} 17. Bd3 {[%emt 0:00:15]} Bxd3 {[%emt 0:00:26]} 18. Qxd3 {[%emt 0:00:01]} f5 {[%emt 0:00:31]} 19. h3 {[%emt 0:01:12]} Bh4 {[%emt 0:01:19]} 20. O-O {[%emt 0:00:14]} Be7 {[%emt 0:00:42]} 21. Nd4 {[%emt 0:00:08]} Qd7 {[%emt 0:00:24]} 22. f3 {[%emt 0:00:30]} Nc5 {[%emt 0:00:22]} 23. Qd2 {[%emt 0:00:12]} Nb7 {[%emt 0:01:26]} 24. Rad1 {[%emt 0:00:11]} c5 {[%emt 0:00:13]} 25. Nb3 {[%emt 0:00:21]} Qe8 {[%emt 0:00:32]} 26. e4 {[%emt 0:01:05]} fxe4 {[%emt 0:01:42]} 27. fxe4 {[%emt 0:00:42]} d4 {[%emt 0:00:16]} 28. cxd4 {[%emt 0:00:38]} cxd4 {[%emt 0:00:31]} 29. Qxd4 {[%emt 0:00:33]} Nc5 {[%emt 0:00:07]} 30. Qc4 {[%emt 0:00:46]} Qg6 {[%emt 0:00:17]} 31. Nxc5 {[%emt 0:00:17]} Bxc5+ {[%emt 0:00:05]} 32. Kh1 {[%emt 0:00:00]} Rac8 {[%emt 0:00:16]} 33. Qe2 {[%emt 0:00:05]} Rcd8 {[%emt 0:00:11]} 34. Rxd8 {[%emt 0:00:12]} Rxd8 {[%emt 0:00:00]} 35. Qg4 {[%emt 0:00:08]} Qxg4 {[%emt 0:00:27]} 36. hxg4 {[%emt 0:00:01]} Rf8 {[%emt 0:00:29]} 37. Rf3 {[%emt 0:00:09]} g5 {[%emt 0:00:12]} 38. Bc1 {[%emt 0:00:21]} Rxf3 {[%emt 0:00:05]} 39. gxf3 {[%emt 0:00:05]} Bd4 {[%emt 0:00:00]} 40. b3 {[%emt 0:00:33]} Bxe5 {[%emt 0:00:03]} 41. Kg2 {[%emt 0:00:05]} Kf7 {[%emt 0:00:05]} 42. Ba3 {[%emt 0:00:05]} Kg6 {[%emt 0:00:03]} 43. Be7 {[%emt 0:00:00]} h5 {[%emt 0:00:02]} 44. gxh5+ {[%emt 0:00:08]} Kxh5 {[%emt 0:00:03]} 45. Bb4 {[%emt 0:00:11]} g4 {[%emt 0:00:01]} 46. Bd2 {[%emt 0:00:12]} gxf3+ {[%emt 0:00:05]} 47. Kxf3 {[%emt 0:00:01]} Kh4 {[%emt 0:00:10]} 48. Be3 {[%emt 0:00:00]} Bc7 {[%emt 0:00:14]} 49. b4 {[%emt 0:00:02]} a6 {[%emt 0:00:09]} 50. a4 {[%emt 0:00:07]} b5 {[%emt 0:00:00]} 51. axb5 {[%emt 0:00:27]} axb5 {[%emt 0:00:02]} 52. Bc5 {[%emt 0:00:00]} Kg5 {[%emt 0:00:09]} 53. Be7+ {[%emt 0:00:00]} Kg6 {[%emt 0:00:05]} 54. Ke3 {[%emt 0:00:04]} e5 {[%emt 0:00:04]} 55. Bc5 {[%emt 0:00:22]} 1/2-1/2

[Event "Redbull chessmasters 2019"]
[Site "Istambul"]
[Date "2019.11.24"]
[Round "7.9"]
[White "Tasdogen, Dincer"]
[Black "Ererdem, Gani Eren"]
[Result "1-0"]
[ECO "B15"]
[WhiteElo "2301"]
[BlackElo "2105"]
[Annotator "NA"]
[PlyCount "73"]
[EventDate "2019.11.23"]
[EventType "k.o."]
[EventCountry "TUR"]
[SourceTitle "playchess.com"]
[Source "ChessBase"]
[SourceQuality "1"]
[TimeControl "600+5"]

1. e4 {[%emt 0:00:00]} g6 {[%emt 0:00:00]} 2. d4 {[%emt 0:00:07]} Bg7 {[%emt 0:00:00]} 3. Nc3 {[%emt 0:00:00]} c6 {[%emt 0:00:00]} 4. Nf3 {[%emt 0:00:08]} d5 {[%emt 0:00:03]} 5. h3 {[%emt 0:00:04]} Nf6 {[%emt 0:00:05]} 6. Bd3 {[%emt 0:00:06]} dxe4 {[%emt 0:00:00]} 7. Nxe4 {[%emt 0:00:05]} Nxe4 {[%emt 0:00:02]} 8. Bxe4 {[%emt 0:00:05]} O-O {[%emt 0:00:05]} 9. O-O {[%emt 0:00:05]} Nd7 {[%emt 0:00:05]} 10. c3 {[%emt 0:00:05]} c5 {[%emt 0:00:05]} 11. Re1 {[%emt 0:00:05]} cxd4 {[%emt 0:00:00]} 12. Nxd4 {[%emt 0:00:10]} Nc5 {[%emt 0:00:56]} 13. Bc2 {[%emt 0:00:02]} e5 {[%emt 0:01:40]} 14. Nf3 {[%emt 0:00:26]} Qc7 {[%emt 0:00:16]} 15. Be3 {[%emt 0:01:01]} b6 {[%emt 0:01:15]} 16. b4 {[%emt 0:01:19]} Rd8 {[%emt 0:00:06]} 17. Qb1 {[%emt 0:01:07]} Ne6 {[%emt 0:00:25]} 18. Be4 {[%emt 0:00:37]} Rb8 {[%emt 0:00:39]} 19. Qb3 {[%emt 0:00:08]} Nf4 {[%emt 0:02:13]} 20. Bxf4 {[%emt 0:00:57]} exf4 {[%emt 0:00:01]} 21. Bd5 {[%emt 0:00:00]} Bf5 {[%emt 0:00:59]} 22. Rac1 {[%emt 0:00:57]} b5 {[%emt 0:00:15]} 23. c4 {[%emt 0:00:28]} bxc4 {[%emt 0:00:21]} 24. Bxc4 {[%emt 0:00:10]} Qb7 {[%emt 0:00:45]} 25. b5 {[%emt 0:01:23]} Bf6 {[%emt 0:00:09]} 26. a4 {[%emt 0:00:04]} a6 {[%emt 0:00:27]} 27. Rcd1 {[%emt 0:01:29]} axb5 {[%emt 0:00:07]} 28. axb5 {[%emt 0:00:01]} Kg7 {[%emt 0:00:15]} 29. Rxd8 {[%emt 0:00:27]} Rxd8 {[%emt 0:00:05]} 30. Rd1 {[%emt 0:00:00]} Rxd1+ {[%emt 0:01:04]} 31. Qxd1 {[%emt 0:00:02]} Be4 {[%emt 0:00:05]} 32. Bf1 {[%emt 0:00:20]} g5 {[%emt 0:00:02]} 33. Nh2 {[%emt 0:00:05]} Qb6 {[%emt 0:00:04]} 34. Nf3 {[%emt 0:00:19]} h6 {[%emt 0:00:01]} 35. Bd3 {[%emt 0:00:09]} Bd5 {[%emt 0:00:13]} 36. Qe2 {[%emt 0:00:06]} Be6 {[%emt 0:00:12]} 37. Bc4 {[%emt 0:00:12]} 1-0

[Event "Redbull chessmasters 2019"]
[Site "Istambul"]
[Date "2019.11.24"]
[Round "7.10"]
[White "Olcum, Ahmet"]
[Black "Burcu, Cagatay"]
[Result "0-1"]
[ECO "C00"]
[WhiteElo "2303"]
[BlackElo "2331"]
[Annotator "NA"]
[PlyCount "68"]
[EventDate "2019.11.23"]
[EventType "k.o."]
[EventCountry "TUR"]
[SourceTitle "playchess.com"]
[Source "ChessBase"]
[SourceQuality "1"]
[TimeControl "600+5"]

1. e4 {[%emt 0:00:00]} e6 {[%emt 0:00:06]} 2. d3 {[%emt 0:00:01]} d5 {[%emt 0:00:05]} 3. Nd2 {[%emt 0:00:05]} Nf6 {[%emt 0:00:07]} 4. Ngf3 {[%emt 0:00:00]} c5 {[%emt 0:00:00]} 5. g3 {[%emt 0:00:03]} Nc6 {[%emt 0:00:01]} 6. Bg2 {[%emt 0:00:05]} Be7 {[%emt 0:00:05]} 7. O-O {[%emt 0:00:05]} O-O {[%emt 0:00:02]} 8. Re1 {[%emt 0:00:00]} Qc7 {[%emt 0:00:00]} 9. e5 {[%emt 0:00:00]} Nd7 {[%emt 0:00:04]} 10. Qe2 {[%emt 0:00:00]} b5 {[%emt 0:00:05]} 11. Nf1 {[%emt 0:00:01]} Bb7 {[%emt 0:00:00]} 12. h4 {[%emt 0:00:04]} Rfc8 {[%emt 0:00:00]} 13. c3 {[%emt 0:00:36]} a5 {[%emt 0:00:00]} 14. Bf4 {[%emt 0:00:05]} b4 {[%emt 0:00:04]} 15. Ne3 {[%emt 0:00:05]} Qd8 {[%emt 0:00:03]} 16. c4 {[%emt 0:00:01]} Nd4 {[%emt 0:00:31]} 17. Nxd4 {[%emt 0:00:15]} cxd4 {[%emt 0:00:02]} 18. Ng4 {[%emt 0:01:28]} Nc5 {[%emt 0:00:02]} 19. cxd5 {[%emt 0:01:06]} Bxd5 {[%emt 0:00:02]} 20. Bxd5 {[%emt 0:00:44]} Qxd5 {[%emt 0:00:02]} 21. h5 {[%emt 0:01:31]} h6 {[%emt 0:00:18]} 22. Rac1 {[%emt 0:02:29]} b3 {[%emt 0:00:31]} 23. a3 {[%emt 0:00:05]} Na4 {[%emt 0:01:18]} 24. Bxh6 {[%emt 0:00:34]} Nxb2 {[%emt 0:03:22]} 25. Qxb2 {[%emt 0:01:03]} gxh6 {[%emt 0:00:03]} 26. Nxh6+ {[%emt 0:00:13]} Kg7 {[%emt 0:00:05]} 27. Ng4 {[%emt 0:00:07]} Bg5 {[%emt 0:00:29]} 28. f4 {[%emt 0:00:53]} Qf3 {[%emt 0:00:03]} 29. fxg5 {[%emt 0:00:25]} Qxg4 {[%emt 0:00:02]} 30. h6+ {[%emt 0:00:14]} Kg6 {[%emt 0:00:25]} 31. Kg2 {[%emt 0:00:10]} Qxg5 {[%emt 0:00:24]} 32. Rf1 {[%emt 0:00:05]} Qxe5 {[%emt 0:00:24]} 33. Rce1 {[%emt 0:00:03]} Qd5+ {[%emt 0:00:10]} 34. Kh3 {[%emt 0:00:07]} Rc2 {[%emt 0:00:06]} 0-1

[Event "Redbull chessmasters 2019"]
[Site "Istambul"]
[Date "2019.11.24"]
[Round "7.11"]
[White "Yazici, Ugur Doga"]
[Black "Isik, Esref"]
[Result "1-0"]
[ECO "B30"]
[WhiteElo "2195"]
[BlackElo "1920"]
[Annotator "NA"]
[PlyCount "65"]
[EventDate "2019.11.23"]
[EventType "k.o."]
[EventCountry "TUR"]
[SourceTitle "playchess.com"]
[Source "ChessBase"]
[SourceQuality "1"]
[TimeControl "600+5"]

1. e4 {[%emt 0:00:00]} c5 {[%emt 0:00:00]} 2. Nf3 {[%emt 0:00:05]} Nc6 {[%emt 0:00:00]} 3. Bb5 {[%emt 0:00:00]} e6 {[%emt 0:00:00]} 4. Bxc6 {[%emt 0:00:04]} bxc6 {[%emt 0:00:04]} 5. d3 {[%emt 0:00:05]} d5 {[%emt 0:00:05]} 6. Nbd2 {[%emt 0:00:00]} Nf6 {[%emt 0:00:00]} 7. O-O {[%emt 0:00:00]} Be7 {[%emt 0:00:10]} 8. Re1 {[%emt 0:00:06]} O-O {[%emt 0:00:27]} 9. b3 {[%emt 0:00:03]} a5 {[%emt 0:00:21]} 10. a4 {[%emt 0:00:04]} Qc7 {[%emt 0:00:22]} 11. Bb2 {[%emt 0:00:24]} d4 {[%emt 0:00:26]} 12. e5 {[%emt 0:00:58]} Nd5 {[%emt 0:00:15]} 13. Ne4 {[%emt 0:00:07]} f5 {[%emt 0:00:33]} 14. exf6 {[%emt 0:00:09]} Bxf6 {[%emt 0:00:40]} 15. Ba3 {[%emt 0:00:32]} Nb4 {[%emt 0:01:01]} 16. Nxc5 {[%emt 0:00:13]} e5 {[%emt 0:00:01]} 17. Bxb4 {[%emt 0:00:22]} axb4 {[%emt 0:00:01]} 18. Qe2 {[%emt 0:00:28]} Qe7 {[%emt 0:00:33]} 19. Ne4 {[%emt 0:00:06]} Ra5 {[%emt 0:00:45]} 20. Nfd2 {[%emt 0:00:11]} Bg5 {[%emt 0:00:27]} 21. Nc4 {[%emt 0:00:08]} Rd5 {[%emt 0:00:03]} 22. Qh5 {[%emt 0:00:14]} Bh6 {[%emt 0:00:15]} 23. Ng3 {[%emt 0:00:34]} e4 {[%emt 0:00:37]} 24. Rxe4 {[%emt 0:01:09]} Qf6 {[%emt 0:02:17]} 25. Qe2 {[%emt 0:00:06]} Bf5 {[%emt 0:00:42]} 26. Nxf5 {[%emt 0:00:35]} Rxf5 {[%emt 0:00:07]} 27. f3 {[%emt 0:00:03]} c5 {[%emt 0:00:14]} 28. a5 {[%emt 0:00:02]} Qg6 {[%emt 0:00:59]} 29. Kh1 {[%emt 0:00:20]} R5f6 {[%emt 0:00:12]} 30. Ne5 {[%emt 0:00:15]} Qf5 {[%emt 0:00:14]} 31. a6 {[%emt 0:00:35]} Ra8 {[%emt 0:00:07]} 32. a7 {[%emt 0:00:03]} Rf7 {[%emt 0:00:05]} 33. Nxf7 {[%emt 0:00:00]} 1-0

[Event "Redbull chessmasters 2019"]
[Site "Istambul"]
[Date "2019.11.24"]
[Round "7.12"]
[White "Gur, Tuba"]
[Black "Aydin, Leyla"]
[Result "1-0"]
[ECO "E14"]
[WhiteElo "1782"]
[BlackElo "1333"]
[Annotator "NA"]
[PlyCount "81"]
[EventDate "2019.11.23"]
[EventType "k.o."]
[EventCountry "TUR"]
[SourceTitle "playchess.com"]
[Source "ChessBase"]
[SourceQuality "1"]
[TimeControl "600+5"]

1. d4 {[%emt 0:00:00]} Nf6 {[%emt 0:00:00]} 2. Nf3 {[%emt 0:00:01]} e6 {[%emt 0:00:01]} 3. e3 {[%emt 0:00:01]} b6 {[%emt 0:00:05]} 4. Bd3 {[%emt 0:00:05]} Bb7 {[%emt 0:00:00]} 5. O-O {[%emt 0:00:07]} d6 {[%emt 0:00:11]} 6. b3 {[%emt 0:00:05]} Nbd7 {[%emt 0:00:05]} 7. Bb2 {[%emt 0:00:05]} Be7 {[%emt 0:00:05]} 8. Nbd2 {[%emt 0:00:05]} O-O {[%emt 0:00:05]} 9. Qe2 {[%emt 0:00:00]} c5 {[%emt 0:00:35]} 10. c4 {[%emt 0:00:00]} d5 {[%emt 0:00:51]} 11. Ne5 {[%emt 0:00:09]} Bd6 {[%emt 0:00:52]} 12. f4 {[%emt 0:00:01]} Ne4 {[%emt 0:01:03]} 13. f5 {[%emt 0:02:18]} exf5 {[%emt 0:01:11]} 14. Rxf5 {[%emt 0:00:03]} Nxd2 {[%emt 0:00:35]} 15. Qxd2 {[%emt 0:00:05]} Nxe5 {[%emt 0:00:05]} 16. dxe5 {[%emt 0:00:01]} Be7 {[%emt 0:00:23]} 17. cxd5 {[%emt 0:01:02]} Bxd5 {[%emt 0:00:11]} 18. Qc3 {[%emt 0:00:38]} Be6 {[%emt 0:00:19]} 19. Rf2 {[%emt 0:00:04]} Bh4 {[%emt 0:00:04]} 20. Rf3 {[%emt 0:00:22]} Bg5 {[%emt 0:00:14]} 21. Bf5 {[%emt 0:00:33]} Re8 {[%emt 0:00:45]} 22. Raf1 {[%emt 0:00:08]} Bd5 {[%emt 0:01:04]} 23. e4 {[%emt 0:00:09]} Bc6 {[%emt 0:00:33]} 24. e6 {[%emt 0:00:43]} f6 {[%emt 0:00:04]} 25. Rh3 {[%emt 0:00:47]} h6 {[%emt 0:00:40]} 26. Qf3 {[%emt 0:00:05]} Re7 {[%emt 0:00:23]} 27. Qh5 {[%emt 0:00:13]} Be8 {[%emt 0:00:01]} 28. Qf3 {[%emt 0:00:19]} Qd2 {[%emt 0:00:07]} 29. Ba1 {[%emt 0:00:17]} Rd8 {[%emt 0:00:14]} 30. e5 {[%emt 0:00:03]} Rc8 {[%emt 0:01:00]} 31. exf6 {[%emt 0:00:12]} Bxf6 {[%emt 0:00:05]} 32. Bxf6 {[%emt 0:00:03]} gxf6 {[%emt 0:00:21]} 33. Rxh6 {[%emt 0:00:28]} Qxh6 {[%emt 0:00:02]} 34. Qg3+ {[%emt 0:00:13]} Qg7 {[%emt 0:00:02]} 35. Qd6 {[%emt 0:00:14]} Rcc7 {[%emt 0:00:12]} 36. Rf3 {[%emt 0:00:08]} Kf8 {[%emt 0:00:14]} 37. Qf4 {[%emt 0:00:22]} Bc6 {[%emt 0:00:12]} 38. Rg3 {[%emt 0:00:03]} Qh8 {[%emt 0:00:08]} 39. Rh3 {[%emt 0:00:45]} Qg7 {[%emt 0:00:05]} 40. Rg3 {[%emt 0:00:23]} Qh8 {[%emt 0:00:03]} 41. Rg6 {[%emt 0:00:15]} 1-0

[Event "Redbull chessmasters 2019"]
[Site "Istambul"]
[Date "2019.11.24"]
[Round "7.13"]
[White "Ozenir, Ekin Baris"]
[Black "Kilic, Ihsan"]
[Result "1-0"]
[ECO "A84"]
[WhiteElo "2274"]
[BlackElo "1941"]
[Annotator "NA"]
[PlyCount "47"]
[EventDate "2019.11.23"]
[EventType "k.o."]
[EventCountry "TUR"]
[SourceTitle "playchess.com"]
[Source "ChessBase"]
[SourceQuality "1"]
[TimeControl "600+5"]

1. d4 {[%emt 0:00:00]} d5 {[%emt 0:00:00]} 2. c4 {[%emt 0:00:01]} e6 {[%emt 0:00:05]} 3. Nc3 {[%emt 0:00:05]} f5 {[%emt 0:00:00]} 4. Nf3 {[%emt 0:00:00]} c6 {[%emt 0:00:01]} 5. Bf4 {[%emt 0:00:00]} Bd6 {[%emt 0:00:00]} 6. e3 {[%emt 0:00:04]} Nf6 {[%emt 0:00:04]} 7. Bd3 {[%emt 0:00:05]} O-O {[%emt 0:00:00]} 8. Qc2 {[%emt 0:00:08]} Ne4 {[%emt 0:00:00]} 9. O-O {[%emt 0:00:07]} b6 {[%emt 0:00:01]} 10. Ne5 {[%emt 0:00:11]} Bb7 {[%emt 0:00:04]} 11. f3 {[%emt 0:00:05]} Nxc3 {[%emt 0:00:05]} 12. bxc3 {[%emt 0:00:03]} Qe7 {[%emt 0:00:06]} 13. e4 {[%emt 0:00:06]} fxe4 {[%emt 0:00:12]} 14. fxe4 {[%emt 0:00:01]} dxc4 {[%emt 0:02:22]} 15. Bxc4 {[%emt 0:00:03]} Nd7 {[%emt 0:00:04]} 16. Nd3 {[%emt 0:00:07]} Kh8 {[%emt 0:00:21]} 17. Bxd6 {[%emt 0:00:09]} Qxd6 {[%emt 0:00:05]} 18. e5 {[%emt 0:00:05]} Qe7 {[%emt 0:00:05]} 19. Nf4 {[%emt 0:00:00]} c5 {[%emt 0:00:49]} 20. Qd3 {[%emt 0:00:31]} Rad8 {[%emt 0:00:48]} 21. Ng6+ {[%emt 0:00:10]} hxg6 {[%emt 0:00:35]} 22. Qh3+ {[%emt 0:00:01]} Kg8 {[%emt 0:00:08]} 23. Bxe6+ {[%emt 0:00:05]} Rf7 {[%emt 0:00:02]} 24. Bxf7+ {[%emt 0:00:01]} 1-0

[Event "Redbull chessmasters 2019"]
[Site "Istambul"]
[Date "2019.11.24"]
[Round "7.14"]
[White "Cil, Batuhan"]
[Black "Alak, Agdar"]
[Result "0-1"]
[ECO "B02"]
[WhiteElo "1737"]
[BlackElo "1482"]
[Annotator "NA"]
[PlyCount "97"]
[EventDate "2019.11.23"]
[EventType "k.o."]
[EventCountry "TUR"]
[SourceTitle "playchess.com"]
[Source "ChessBase"]
[SourceQuality "1"]
[TimeControl "600+5"]

1. e4 {[%emt 0:00:00]} Nf6 {[%emt 0:00:00]} 2. e5 {[%emt 0:00:05]} Nd5 {[%emt 0:00:05]} 3. Bc4 {[%emt 0:00:00]} Nb6 {[%emt 0:00:00]} 4. Bb3 {[%emt 0:00:00]} d5 {[%emt 0:00:09]} 5. d4 {[%emt 0:00:33]} Nc6 {[%emt 0:00:28]} 6. c3 {[%emt 0:00:12]} Bf5 {[%emt 0:00:08]} 7. g4 {[%emt 0:00:38]} Be4 {[%emt 0:00:05]} 8. f3 {[%emt 0:00:13]} Bg6 {[%emt 0:00:09]} 9. h4 {[%emt 0:00:29]} h5 {[%emt 0:00:12]} 10. g5 {[%emt 0:00:45]} e6 {[%emt 0:00:03]} 11. Nh3 {[%emt 0:00:11]} Na5 {[%emt 0:00:09]} 12. Bc2 {[%emt 0:00:30]} Bxc2 {[%emt 0:00:15]} 13. Qxc2 {[%emt 0:00:01]} g6 {[%emt 0:00:07]} 14. Nf4 {[%emt 0:00:26]} c5 {[%emt 0:00:06]} 15. Be3 {[%emt 0:01:00]} Nac4 {[%emt 0:00:23]} 16. Bf2 {[%emt 0:00:17]} Rc8 {[%emt 0:00:22]} 17. b3 {[%emt 0:00:28]} Na5 {[%emt 0:00:25]} 18. dxc5 {[%emt 0:00:24]} Nd7 {[%emt 0:00:01]} 19. Bd4 {[%emt 0:01:13]} Qc7 {[%emt 0:00:18]} 20. b4 {[%emt 0:00:41]} Nc4 {[%emt 0:00:26]} 21. O-O {[%emt 0:00:40]} Bg7 {[%emt 0:00:41]} 22. Re1 {[%emt 0:00:43]} O-O {[%emt 0:00:15]} 23. Nd2 {[%emt 0:00:41]} Ndxe5 {[%emt 0:00:13]} 24. Bxe5 {[%emt 0:00:48]} Nxe5 {[%emt 0:00:14]} 25. Ng2 {[%emt 0:00:32]} Rcd8 {[%emt 0:00:54]} 26. Kf2 {[%emt 0:00:08]} b6 {[%emt 0:00:28]} 27. Nb3 {[%emt 0:00:13]} Nd7 {[%emt 0:00:32]} 28. Rad1 {[%emt 0:00:18]} bxc5 {[%emt 0:00:06]} 29. b5 {[%emt 0:00:03]} c4 {[%emt 0:00:30]} 30. Nd4 {[%emt 0:00:03]} Qb6 {[%emt 0:00:11]} 31. Kf1 {[%emt 0:00:11]} Bxd4 {[%emt 0:00:33]} 32. Rxd4 {[%emt 0:00:04]} Kh7 {[%emt 0:00:38]} 33. a4 {[%emt 0:00:02]} Nc5 {[%emt 0:00:00]} 34. Nf4 {[%emt 0:00:11]} Rfe8 {[%emt 0:00:22]} 35. Nxh5 {[%emt 0:00:01]} Nd3 {[%emt 0:01:35]} 36. Nf6+ {[%emt 0:00:05]} Kh8 {[%emt 0:00:00]} 37. Re2 {[%emt 0:00:10]} e5 {[%emt 0:00:37]} 38. Rg4 {[%emt 0:00:02]} Re6 {[%emt 0:00:16]} 39. h5 {[%emt 0:00:00]} Rxf6 {[%emt 0:00:15]} 40. gxf6 {[%emt 0:00:04]} Qxf6 {[%emt 0:00:05]} 41. Rf2 {[%emt 0:00:14]} Nxf2 {[%emt 0:00:19]} 42. Qxf2 {[%emt 0:00:02]} Kg7 {[%emt 0:00:16]} 43. hxg6 {[%emt 0:00:07]} fxg6 {[%emt 0:00:00]} 44. Qxa7+ {[%emt 0:00:01]} Kg8 {[%emt 0:00:17]} 45. Kg2 {[%emt 0:00:05]} Rf8 {[%emt 0:00:05]} 46. Rg3 {[%emt 0:00:08]} e4 {[%emt 0:00:00]} 47. Qc5 {[%emt 0:00:05]} exf3+ {[%emt 0:00:02]} 48. Kf2 {[%emt 0:00:04]} Qf5 {[%emt 0:00:06]} 49. Qd4 {[%emt 0:00:14]} 0-1

[Event "Redbull chessmasters 2019"]
[Site "Istambul"]
[Date "2019.11.24"]
[Round "7.15"]
[White "Sabahi, Cem"]
[Black "Tofan, Ismail"]
[Result "0-1"]
[ECO "A05"]
[WhiteElo "1604"]
[BlackElo "1685"]
[Annotator "NA"]
[PlyCount "88"]
[EventDate "2019.11.23"]
[EventType "k.o."]
[EventCountry "TUR"]
[SourceTitle "playchess.com"]
[Source "ChessBase"]
[SourceQuality "1"]
[TimeControl "600+5"]

1. e4 {[%emt 0:00:00]} d6 {[%emt 0:00:00]} 2. d3 {[%emt 0:00:03]} Nf6 {[%emt 0:00:01]} 3. Nf3 {[%emt 0:00:05]} g6 {[%emt 0:00:05]} 4. g3 {[%emt 0:00:05]} Bg7 {[%emt 0:00:05]} 5. Bg2 {[%emt 0:00:05]} O-O {[%emt 0:00:05]} 6. O-O {[%emt 0:00:05]} c5 {[%emt 0:00:00]} 7. c3 {[%emt 0:00:00]} Nc6 {[%emt 0:00:00]} 8. Re1 {[%emt 0:00:06]} a6 {[%emt 0:00:00]} 9. a4 {[%emt 0:00:05]} Bd7 {[%emt 0:00:00]} 10. Nbd2 {[%emt 0:00:14]} b5 {[%emt 0:00:00]} 11. axb5 {[%emt 0:00:05]} axb5 {[%emt 0:00:00]} 12. Rxa8 {[%emt 0:00:11]} Qxa8 {[%emt 0:00:00]} 13. d4 {[%emt 0:00:05]} e5 {[%emt 0:00:08]} 14. dxc5 {[%emt 0:01:13]} dxc5 {[%emt 0:00:05]} 15. Nb3 {[%emt 0:00:03]} c4 {[%emt 0:00:35]} 16. Nc5 {[%emt 0:00:05]} Rd8 {[%emt 0:00:08]} 17. Qe2 {[%emt 0:00:51]} Bg4 {[%emt 0:00:41]} 18. h3 {[%emt 0:00:21]} Bxf3 {[%emt 0:00:26]} 19. Qxf3 {[%emt 0:00:16]} Nd7 {[%emt 0:00:10]} 20. Be3 {[%emt 0:01:06]} Nxc5 {[%emt 0:00:51]} 21. Bxc5 {[%emt 0:00:05]} Rd2 {[%emt 0:00:05]} 22. Re2 {[%emt 0:00:37]} Qa1+ {[%emt 0:00:06]} 23. Kh2 {[%emt 0:00:09]} Qxb2 {[%emt 0:00:03]} 24. Rxd2 {[%emt 0:00:31]} Qxd2 {[%emt 0:00:06]} 25. Qg4 {[%emt 0:00:08]} Qd8 {[%emt 0:00:00]} 26. h4 {[%emt 0:00:26]} h5 {[%emt 0:00:00]} 27. Qe2 {[%emt 0:00:53]} Na5 {[%emt 0:00:16]} 28. Qa2 {[%emt 0:00:48]} Nb3 {[%emt 0:00:01]} 29. Bb4 {[%emt 0:00:12]} Qb6 {[%emt 0:00:39]} 30. Qa8+ {[%emt 0:01:14]} Kh7 {[%emt 0:00:05]} 31. Kg1 {[%emt 0:00:00]} Nc1 {[%emt 0:00:12]} 32. Bf1 {[%emt 0:00:28]} Nb3 {[%emt 0:02:09]} 33. Qd5 {[%emt 0:00:03]} Qf6 {[%emt 0:02:25]} 34. Qxb5 {[%emt 0:00:49]} Nd2 {[%emt 0:00:01]} 35. Qd5 {[%emt 0:00:54]} Nf3+ {[%emt 0:00:19]} 36. Kg2 {[%emt 0:00:07]} Ne1+ {[%emt 0:00:06]} 37. Kg1 {[%emt 0:00:16]} Nf3+ {[%emt 0:01:51]} 38. Kg2 {[%emt 0:00:02]} g5 {[%emt 0:00:09]} 39. hxg5 {[%emt 0:00:15]} Nxg5 {[%emt 0:00:05]} 40. Be2 {[%emt 0:00:02]} h4 {[%emt 0:00:08]} 41. gxh4 {[%emt 0:00:14]} Ne6 {[%emt 0:00:00]} 42. Qxc4 {[%emt 0:00:02]} Qxh4 {[%emt 0:00:05]} 43. Qd3 {[%emt 0:00:05]} Nf4+ {[%emt 0:00:05]} 44. Kf1 {[%emt 0:00:02]} Qh1# {[%emt 0:00:08]} 0-1